[Event "GAMMA Reykjavik Open 2019"]
[Site "Reykjavik"]
[Date "2019.04.08"]
[Round "1.15"]
[White "Christiansen, Johan-Sebastian"]
[Black "Le Goff, Ronan"]
[Result "1-0"]
[ECO "E05"]
[WhiteElo "2571"]
[BlackElo "2186"]
[Annotator "ChessBase"]
[PlyCount "59"]
[EventDate "2019.04.04"]
[EventType "swiss"]
[EventCountry "ISL"]
[SourceTitle "playchess.com"]
[Source "ChessBase"]
[SourceQuality "1"]
[TimeControl "40/5400+30:1800+30"]

1. Nf3 {[%emt 0:00:00]} Nf6 {[%emt 0:00:00]} 2. c4 {[%emt 0:00:00]} e6 {[%emt 0:00:00]} 3. g3 {[%emt 0:00:00]} d5 {[%emt 0:00:01]} 4. Bg2 {[%emt 0:00:00]} Be7 {[%emt 0:00:09]} 5. d4 {[%emt 0:00:06]} O-O {[%emt 0:00:41]} 6. O-O {[%emt 0:00:32]} dxc4 {[%emt 0:00:09]} 7. Qc2 {[%emt 0:00:11]} a6 {[%emt 0:00:07]} 8. a4 {[%emt 0:00:50]} Bd7 {[%emt 0:00:48]} 9. Bg5 {[%emt 0:00:09]} Bc6 {[%emt 0:05:46]} 10. Rd1 {[%emt 0:00:06]} a5 {[%emt 0:06:42]} 11. Nbd2 {[%emt 0:01:28]} Na6 {[%emt 0:00:27]} 12. Nxc4 {[%emt 0:00:05]} Nb4 {[%emt 0:01:31]} 13. Qb3 {[%emt 0:00:01]} Bd5 {[%emt 0:17:39]} 14. Nfe5 {[%emt 0:00:40]} Bxg2 {[%emt 0:01:49]} 15. Kxg2 {[%emt 0:00:19]} Nfd5 {[%emt 0:06:15]} 16. Bd2 {[%emt 0:12:34]} c6 {[%emt 0:20:09]} 17. e4 {[%emt 0:05:32]} Nf6 {[%emt 0:00:22]} 18. f3 {[%emt 0:00:07]} Qc7 {[%emt 0:02:43]} 19. Nxa5 {[%emt 0:15:57]} Qxa5 {[%emt 0:02:09]} 20. Nc4 {[%emt 0:00:56]} Qa7 {[%emt 0:03:24]} 21. Bxb4 {[%emt 0:00:18]} Bxb4 {[%emt 0:00:11]} 22. Qxb4 {[%emt 0:00:02]} Rfd8 {[%emt 0:00:39]} 23. Nb6 {[%emt 0:02:13]} Rab8 {[%emt 0:00:56]} 24. a5 {[%emt 0:01:38]} Ne8 {[%emt 0:00:32]} 25. Rd2 {[%emt 0:03:08]} Nc7 {[%emt 0:00:40]} 26. Rad1 {[%emt 0:03:03]} Na8 {[%emt 0:02:27]} 27. Nc4 {[%emt 0:08:07]} Nc7 {[%emt 0:00:57]} 28. Ne5 {[%emt 0:01:40]} Na6 {[%emt 0:01:57]} 29. Qe7 {[%emt 0:00:30]} Rf8 {[%emt 0:00:22]} 30. Nxc6 {[%emt 0:00:16]} 1-0

[Event "GAMMA Reykjavik Open 2019"]
[Site "Reykjavik"]
[Date "2019.04.08"]
[Round "1.21"]
[White "Praggnanandhaa R"]
[Black "Maisuradze, Nino"]
[Result "1-0"]
[ECO "A07"]
[WhiteElo "2537"]
[BlackElo "2168"]
[Annotator "RC"]
[PlyCount "60"]
[EventDate "2019.04.04"]
[EventType "swiss"]
[EventCountry "ISL"]
[SourceTitle "playchess.com"]
[Source "ChessBase"]
[SourceQuality "1"]
[TimeControl "40/5400+30:1800+30"]

1. g3 {[%emt 0:00:00]} d5 {[%emt 0:00:00]} 2. Bg2 {[%emt 0:00:00]} e5 {[%emt 0:02:39]} 3. d3 {[%emt 0:00:05]} Nf6 {[%emt 0:00:16]} 4. Nd2 {[%emt 0:04:27]} Be7 {[%emt 0:01:22]} 5. Ngf3 {[%emt 0:04:13]} Nc6 {[%emt 0:08:44]} 6. O-O {[%emt 0:02:09]} Bg4 {[%emt 0:05:14]} 7. c4 {[%emt 0:16:59]} Qd7 {[%emt 0:30:27]} 8. a3 {[%emt 0:06:08]} a5 {[%emt 0:00:29]} 9. cxd5 {[%emt 0:10:05]} Nxd5 {[%emt 0:00:08]} 10. Re1 {[%emt 0:07:13]} a4 {[%emt 0:09:25]} 11. b3 {[%emt 0:07:32]} axb3 {[%emt 0:00:33]} 12. Qxb3 {[%emt 0:03:59]} Be6 {[%emt 0:08:41]} 13. Nc4 {[%emt 0:08:05]} Nb6 {[%emt 0:22:17]} 14. Nxb6 {[%emt 0:03:08]} Bxb3 {[%emt 0:00:10]} 15. Nxd7 {[%emt 0:00:09]} Kxd7 {[%emt 0:00:02]} 16. Rb1 {[%emt 0:00:51]} Be6 {[%emt 0:00:14]} 17. Rxb7 {[%emt 0:00:43]} Rhb8 {[%emt 0:01:25]} 18. Rb2 {[%emt 0:08:56]} f6 {[%emt 0:01:29]} 19. Rc2 {[%emt 0:01:54]} Ra6 {[%emt 0:00:40]} 20. e3 {[%emt 0:08:27]} Na7 {[%emt 0:03:36]} 21. d4 {[%emt 0:03:40]} e4 {[%emt 0:00:31]} 22. Nd2 {[%emt 0:00:06]} f5 {[%emt 0:00:03]} 23. f3 {[%emt 0:01:51]} exf3 {[%emt 0:00:14]} 24. Nxf3 {[%emt 0:00:06]} Rb1 {[%emt 0:02:47]} 25. Bf1 {[%emt 0:01:08]} Ra4 {[%emt 0:00:34]} 26. Rc3 {[%emt 0:00:32]} Nb5 {[%emt 0:00:25]} 27. Ne5+ {[%emt 0:00:21]} Kc8 {[%emt 0:00:18]} 28. Rc6 {[%emt 0:00:32]} Bd5 {[%emt 0:00:18]} 29. Bd3 {[%emt 0:00:28]} Rb3 {[%emt 0:00:57]} 30. Bc2 {[%emt 0:00:39]} Bxc6 {[%emt 0:00:33]} 1-0

[Event "GAMMA Reykjavik Open 2019"]
[Site "Reykjavik"]
[Date "2019.04.08"]
[Round "1.26"]
[White "Abrahams, Daniel"]
[Black "Kanarek, Marcel"]
[Result "1-0"]
[ECO "A38"]
[WhiteElo "2143"]
[BlackElo "2505"]
[Annotator "ChessBase"]
[PlyCount "81"]
[EventDate "2019.04.04"]
[EventType "swiss"]
[EventCountry "ISL"]
[SourceTitle "playchess.com"]
[Source "ChessBase"]
[SourceQuality "1"]
[TimeControl "40/5400+30:1800+30"]

1. c4 {[%emt 0:00:00]} g6 {[%emt 0:00:00]} 2. Nc3 {[%emt 0:00:00]} Bg7 {[%emt 0:00:00]} 3. g3 {[%emt 0:00:00]} Nf6 {[%emt 0:00:26]} 4. Bg2 {[%emt 0:00:06]} O-O {[%emt 0:00:10]} 5. Nf3 {[%emt 0:00:03]} d6 {[%emt 0:01:15]} 6. O-O {[%emt 0:00:06]} c5 {[%emt 0:00:14]} 7. a3 {[%emt 0:00:55]} Nc6 {[%emt 0:00:24]} 8. Rb1 {[%emt 0:00:12]} a5 {[%emt 0:02:34]} 9. d3 {[%emt 0:01:17]} Bd7 {[%emt 0:06:40]} 10. Bg5 {[%emt 0:06:55]} h6 {[%emt 0:03:10]} 11. Bd2 {[%emt 0:02:21]} Ne8 {[%emt 0:07:25]} 12. Ne1 {[%emt 0:02:44]} Nc7 {[%emt 0:00:58]} 13. Nc2 {[%emt 0:00:16]} a4 {[%emt 0:17:19]} 14. Ne3 {[%emt 0:03:38]} Na5 {[%emt 0:02:22]} 15. Nxa4 {[%emt 0:02:07]} Nxc4 {[%emt 0:03:20]} 16. dxc4 {[%emt 0:00:26]} Bxa4 {[%emt 0:00:35]} 17. Qc1 {[%emt 0:00:05]} Bc6 {[%emt 0:17:05]} 18. Nd5 {[%emt 0:01:10]} Bxd5 {[%emt 0:01:56]} 19. cxd5 {[%emt 0:01:39]} h5 {[%emt 0:01:27]} 20. f4 {[%emt 0:11:18]} Nb5 {[%emt 0:07:05]} 21. e3 {[%emt 0:00:12]} Qd7 {[%emt 0:05:49]} 22. Qc2 {[%emt 0:03:59]} Rfc8 {[%emt 0:03:13]} 23. f5 {[%emt 0:00:49]} g5 {[%emt 0:00:25]} 24. Qd1 {[%emt 0:01:09]} g4 {[%emt 0:02:05]} 25. h3 {[%emt 0:01:49]} c4 {[%emt 0:02:15]} 26. hxg4 {[%emt 0:00:44]} hxg4 {[%emt 0:02:10]} 27. Qxg4 {[%emt 0:00:45]} c3 {[%emt 0:01:37]} 28. bxc3 {[%emt 0:03:58]} Nxc3 {[%emt 0:01:44]} 29. Rb3 {[%emt 0:00:16]} Ra4 {[%emt 0:02:55]} 30. Qh5 {[%emt 0:15:01]} Ne4 {[%emt 0:04:25]} 31. Bxe4 {[%emt 0:09:32]} Rxe4 {[%emt 0:00:01]} 32. Rfb1 {[%emt 0:00:16]} Qa4 {[%emt 0:01:55]} 33. Rxb7 {[%emt 0:13:29]} Qxa3 {[%emt 0:00:02]} 34. Rb8 {[%emt 0:00:16]} Rec4 {[%emt 0:00:33]} 35. f6 {[%emt 0:00:36]} exf6 {[%emt 0:02:00]} 36. R1b7 {[%emt 0:02:03]} Qa1+ {[%emt 0:01:03]} 37. Kf2 {[%emt 0:00:23]} f5 {[%emt 0:00:46]} 38. Qxf7+ {[%emt 0:00:06]} Kh8 {[%emt 0:00:15]} 39. Rb1 {[%emt 0:00:41]} Rxb8 {[%emt 0:01:20]} 40. Rxb8+ {[%emt 0:00:00]} Kh7 {[%emt 0:00:00]} 41. Qxf5+ {[%emt 0:00:56] Bf8 [%emt 00:00:31]} 1-0

[Event "GAMMA Reykjavik Open 2019"]
[Site "Reykjavik"]
[Date "2019.04.08"]
[Round "1.27"]
[White "Tang, Andrew"]
[Black "Briem, Stephan"]
[Result "0-1"]
[ECO "E32"]
[WhiteElo "2501"]
[BlackElo "2138"]
[Annotator "RC"]
[PlyCount "70"]
[EventDate "2019.04.04"]
[EventType "swiss"]
[EventCountry "ISL"]
[SourceTitle "playchess.com"]
[Source "ChessBase"]
[SourceQuality "1"]
[TimeControl "40/5400+30:1800+30"]

1. d4 {[%emt 0:00:00]} Nf6 {[%emt 0:00:00]} 2. c4 {[%emt 0:00:00]} e6 {[%emt 0:00:34]} 3. Nc3 {[%emt 0:00:03]} Bb4 {[%emt 0:00:46]} 4. Qc2 {[%emt 0:00:09]} d6 {[%emt 0:01:32]} 5. Nf3 {[%emt 0:00:11]} Nbd7 {[%emt 0:00:51]} 6. g3 {[%emt 0:01:02]} b6 {[%emt 0:01:21]} 7. Bg2 {[%emt 0:01:32]} Bb7 {[%emt 0:00:32]} 8. O-O {[%emt 0:01:08]} Bxc3 {[%emt 0:01:08]} 9. Qxc3 {[%emt 0:00:08]} Qe7 {[%emt 0:01:50]} 10. b3 {[%emt 0:02:59]} O-O {[%emt 0:00:26]} 11. Bb2 {[%emt 0:03:31]} Ne4 {[%emt 0:00:31]} 12. Qc2 {[%emt 0:01:50]} f5 {[%emt 0:00:15]} 13. Rad1 {[%emt 0:05:56]} Rae8 {[%emt 0:02:40]} 14. Ne1 {[%emt 0:15:19]} e5 {[%emt 0:06:27]} 15. d5 {[%emt 0:11:05]} Nec5 {[%emt 0:04:23]} 16. b4 {[%emt 0:02:48]} Na6 {[%emt 0:01:39]} 17. a3 {[%emt 0:01:50]} Bc8 {[%emt 0:08:18]} 18. Nd3 {[%emt 0:09:17]} Nf6 {[%emt 0:04:47]} 19. Qa4 {[%emt 0:11:24]} Nh5 {[%emt 0:08:56]} 20. b5 {[%emt 0:02:22]} e4 {[%emt 0:10:29]} 21. bxa6 {[%emt 0:08:15]} exd3 {[%emt 0:01:32]} 22. exd3 {[%emt 0:00:17]} f4 {[%emt 0:02:45]} 23. Be4 {[%emt 0:07:40]} Qf7 {[%emt 0:09:20]} 24. Qc2 {[%emt 0:02:56]} f3 {[%emt 0:09:33]} 25. Rfe1 {[%emt 0:01:09]} Qd7 {[%emt 0:05:13]} 26. Kh1 {[%emt 0:01:59]} Qh3 {[%emt 0:06:52]} 27. Rg1 {[%emt 0:00:03]} Nf6 {[%emt 0:01:36]} 28. g4 {[%emt 0:00:03]} Nxg4 {[%emt 0:03:30]} 29. Rxg4 {[%emt 0:00:02]} Bxg4 {[%emt 0:00:31]} 30. Rg1 {[%emt 0:00:02]} Re7 {[%emt 0:01:25]} 31. Qc1 {[%emt 0:01:16]} Qh5 {[%emt 0:02:08]} 32. Rg3 {[%emt 0:00:57]} Bh3 {[%emt 0:02:52]} 33. Qc3 {[%emt 0:00:44]} Re5 {[%emt 0:01:02]} 34. Qd2 {[%emt 0:01:04]} Bg2+ {[%emt 0:00:14]} 35. Kg1 {[%emt 0:00:01]} Qxh2+ {[%emt 0:00:12]} 0-1

[Event "GAMMA Reykjavik Open 2019"]
[Site "Reykjavik"]
[Date "2019.04.08"]
[Round "1.28"]
[White "Van de Plassche, Erik"]
[Black "Salomon, Johan"]
[Result "0-1"]
[ECO "A57"]
[WhiteElo "2136"]
[BlackElo "2495"]
[Annotator "ChessBase"]
[PlyCount "58"]
[EventDate "2019.04.04"]
[EventType "swiss"]
[EventCountry "ISL"]
[SourceTitle "playchess.com"]
[Source "ChessBase"]
[SourceQuality "1"]
[TimeControl "40/5400+30:1800+30"]

1. d4 {[%emt 0:00:00]} Nf6 {[%emt 0:00:00]} 2. c4 {[%emt 0:00:00]} c5 {[%emt 0:01:18]} 3. d5 {[%emt 0:00:00]} b5 {[%emt 0:00:12]} 4. cxb5 {[%emt 0:01:03]} a6 {[%emt 0:00:08]} 5. Nc3 {[%emt 0:00:37]} axb5 {[%emt 0:03:42]} 6. e4 {[%emt 0:01:16]} b4 {[%emt 0:01:23]} 7. Nb5 {[%emt 0:00:40]} d6 {[%emt 0:01:00]} 8. Bf4 {[%emt 0:01:35]} g5 {[%emt 0:00:06]} 9. Be3 {[%emt 0:13:06]} Nxe4 {[%emt 0:00:08]} 10. Bd3 {[%emt 0:01:01]} Qb6 {[%emt 0:00:06]} 11. Bxe4 {[%emt 0:27:09]} Qxb5 {[%emt 0:00:12]} 12. Bxg5 {[%emt 0:02:40]} h6 {[%emt 0:11:35]} 13. Be3 {[%emt 0:05:22]} Bg7 {[%emt 0:01:41]} 14. Qd2 {[%emt 0:11:39]} Ba6 {[%emt 0:13:52]} 15. Nf3 {[%emt 0:00:52]} Nd7 {[%emt 0:05:19]} 16. Rd1 {[%emt 0:06:47]} Nf6 {[%emt 0:05:19]} 17. Bd3 {[%emt 0:07:20]} Qxd3 {[%emt 0:00:33]} 18. Qxd3 {[%emt 0:00:31]} Bxd3 {[%emt 0:00:07]} 19. Rxd3 {[%emt 0:00:27]} Rxa2 {[%emt 0:00:14]} 20. O-O {[%emt 0:00:58]} Rxb2 {[%emt 0:07:24]} 21. Nh4 {[%emt 0:03:00]} Ra2 {[%emt 0:05:17]} 22. Nf5 {[%emt 0:02:20]} Bf8 {[%emt 0:00:20]} 23. Re1 {[%emt 0:02:40]} Kd7 {[%emt 0:01:05]} 24. h3 {[%emt 0:01:57]} e6 {[%emt 0:07:19]} 25. dxe6+ {[%emt 0:00:36]} fxe6 {[%emt 0:00:13]} 26. Nxd6 {[%emt 0:06:58]} Bxd6 {[%emt 0:00:21]} 27. Bxc5 {[%emt 0:00:01]} Nd5 {[%emt 0:00:44]} 28. Bxd6 {[%emt 0:02:07]} Kxd6 {[%emt 0:00:06]} 29. Rg3 {[%emt 0:00:11]} Rf8 {[%emt 0:00:41]} 0-1

[Event "GAMMA Reykjavik Open 2019"]
[Site "Reykjavik"]
[Date "2019.04.08"]
[Round "1.30"]
[White "Siddharth, Jagadeesh"]
[Black "Hambleton, Aman"]
[Result "0-1"]
[ECO "A32"]
[WhiteElo "2132"]
[BlackElo "2484"]
[Annotator "RC"]
[PlyCount "72"]
[EventDate "2019.04.04"]
[EventType "swiss"]
[EventCountry "ISL"]
[SourceTitle "playchess.com"]
[Source "ChessBase"]
[SourceQuality "1"]
[TimeControl "40/5400+30:1800+30"]

1. d4 {[%emt 0:00:00]} Nf6 {[%emt 0:00:30]} 2. c4 {[%emt 0:00:00]} e6 {[%emt 0:00:18]} 3. g3 {[%emt 0:00:00]} c5 {[%emt 0:00:18]} 4. Nf3 {[%emt 0:00:04]} cxd4 {[%emt 0:02:43]} 5. Nxd4 {[%emt 0:00:17]} Qc7 {[%emt 0:00:48]} 6. Nd2 {[%emt 0:00:17]} b6 {[%emt 0:02:04]} 7. Bg2 {[%emt 0:05:06]} Bb7 {[%emt 0:00:17]} 8. Nb5 {[%emt 0:02:46]} Qc8 {[%emt 0:00:08]} 9. Bxb7 {[%emt 0:00:37]} Qxb7 {[%emt 0:00:10]} 10. Nf3 {[%emt 0:00:14]} a6 {[%emt 0:11:09]} 11. Nd6+ {[%emt 0:02:47]} Bxd6 {[%emt 0:00:11]} 12. Qxd6 {[%emt 0:00:10]} Qc6 {[%emt 0:01:56]} 13. Qd4 {[%emt 0:07:40]} Qe4 {[%emt 0:19:38]} 14. Qxb6 {[%emt 0:05:58]} Qxc4 {[%emt 0:00:45]} 15. Bg5 {[%emt 0:01:12]} Nc6 {[%emt 0:05:57]} 16. Bxf6 {[%emt 0:05:21]} gxf6 {[%emt 0:01:54]} 17. Qe3 {[%emt 0:00:34]} Nb4 {[%emt 0:04:30]} 18. O-O {[%emt 0:10:52]} Nc2 {[%emt 0:01:55]} 19. Qc1 {[%emt 0:00:29]} Qxe2 {[%emt 0:01:42]} 20. Qd1 {[%emt 0:01:57]} Qxd1 {[%emt 0:00:28]} 21. Raxd1 {[%emt 0:00:20]} Nb4 {[%emt 0:00:25]} 22. Rd4 {[%emt 0:06:23]} Nc6 {[%emt 0:01:39]} 23. Rd6 {[%emt 0:02:04]} Ke7 {[%emt 0:00:32]} 24. Rfd1 {[%emt 0:01:52]} Ra7 {[%emt 0:00:10]} 25. Nh4 {[%emt 0:03:50]} Rb8 {[%emt 0:03:18]} 26. R1d2 {[%emt 0:01:22]} a5 {[%emt 0:02:31]} 27. f4 {[%emt 0:00:53]} a4 {[%emt 0:01:00]} 28. a3 {[%emt 0:03:10]} Na5 {[%emt 0:01:56]} 29. R6d3 {[%emt 0:01:15]} Nc4 {[%emt 0:00:52]} 30. Rc2 {[%emt 0:00:17]} d5 {[%emt 0:00:57]} 31. Nf3 {[%emt 0:01:30]} Rxb2 {[%emt 0:01:54]} 32. Rxb2 {[%emt 0:00:32]} Nxb2 {[%emt 0:00:06]} 33. Rc3 {[%emt 0:00:12]} Nc4 {[%emt 0:00:10]} 34. Nd4 {[%emt 0:00:13]} Rb7 {[%emt 0:00:05]} 35. Nc6+ {[%emt 0:00:19]} Kd6 {[%emt 0:00:08]} 36. Nb4 {[%emt 0:00:56]} Nxa3 {[%emt 0:00:15]} 0-1

[Event "GAMMA Reykjavik Open 2019"]
[Site "Reykjavik"]
[Date "2019.04.11"]
[Round "2.1"]
[White "Saduakassova, Dinara"]
[Black "Jones, Gawain C B"]
[Result "1/2-1/2"]
[ECO "E62"]
[WhiteElo "2461"]
[BlackElo "2698"]
[Annotator "RC"]
[PlyCount "80"]
[EventDate "2019.04.04"]
[EventType "swiss"]
[EventCountry "ISL"]
[SourceTitle "playchess.com"]
[Source "ChessBase"]
[SourceQuality "1"]
[TimeControl "40/5400+30:1800+30"]

1. d4 {[%emt 0:00:20]} Nf6 {[%emt 0:02:03]} 2. c4 {[%emt 0:00:05]} g6 {[%emt 0:00:15]} 3. g3 {[%emt 0:00:16]} Bg7 {[%emt 0:00:09]} 4. Bg2 {[%emt 0:00:05]} O-O {[%emt 0:00:07]} 5. Nc3 {[%emt 0:00:02]} d6 {[%emt 0:01:00]} 6. Nf3 {[%emt 0:00:04]} Nc6 {[%emt 0:00:09]} 7. O-O {[%emt 0:00:05]} e5 {[%emt 0:00:06]} 8. dxe5 {[%emt 0:01:19]} dxe5 {[%emt 0:00:24]} 9. Bg5 {[%emt 0:00:15]} Be6 {[%emt 0:00:26]} 10. Nd5 {[%emt 0:12:22]} Bxd5 {[%emt 0:00:34]} 11. Bxf6 {[%emt 0:00:06]} Bxf6 {[%emt 0:00:08]} 12. cxd5 {[%emt 0:00:09]} Ne7 {[%emt 0:00:15]} 13. e4 {[%emt 0:00:17]} Qd7 {[%emt 0:04:08]} 14. Qb3 {[%emt 0:09:06]} c6 {[%emt 0:02:02]} 15. Rfd1 {[%emt 0:03:20]} cxd5 {[%emt 0:05:17]} 16. exd5 {[%emt 0:00:26]} Nf5 {[%emt 0:07:52]} 17. d6 {[%emt 0:09:41]} Nxd6 {[%emt 0:13:09]} 18. Qd5 {[%emt 0:02:32]} Rad8 {[%emt 0:05:53]} 19. Nxe5 {[%emt 0:02:04]} Qf5 {[%emt 0:00:50]} 20. Nd3 {[%emt 0:04:37]} Qxd5 {[%emt 0:05:29]} 21. Bxd5 {[%emt 0:00:04]} Rfe8 {[%emt 0:00:57]} 22. Rac1 {[%emt 0:08:12]} Re7 {[%emt 0:00:41]} 23. Kf1 {[%emt 0:03:48]} Nf5 {[%emt 0:04:21]} 24. Bb3 {[%emt 0:04:48]} Nd4 {[%emt 0:05:52]} 25. h4 {[%emt 0:08:00]} Nxb3 {[%emt 0:05:29]} 26. axb3 {[%emt 0:00:05]} a5 {[%emt 0:00:11]} 27. Rc5 {[%emt 0:01:37]} b6 {[%emt 0:06:04]} 28. Rc6 {[%emt 0:00:27]} Bd4 {[%emt 0:00:33]} 29. Nf4 {[%emt 0:02:55]} Red7 {[%emt 0:01:46]} 30. Ne2 {[%emt 0:02:54]} Bxb2 {[%emt 0:02:26]} 31. Rxd7 {[%emt 0:00:06]} Rxd7 {[%emt 0:00:04]} 32. Rxb6 {[%emt 0:00:04]} Ba3 {[%emt 0:03:11]} 33. Rb5 {[%emt 0:09:16]} Rd1+ {[%emt 0:02:18]} 34. Kg2 {[%emt 0:00:05]} Bb4 {[%emt 0:00:05]} 35. Nf4 {[%emt 0:03:28]} Rb1 {[%emt 0:00:32]} 36. Nd5 {[%emt 0:00:04]} Rxb3 {[%emt 0:00:19]} 37. Ne7+ {[%emt 0:00:03]} Kg7 {[%emt 0:02:46]} 38. Nc6 {[%emt 0:00:04]} Rc3 {[%emt 0:00:35]} 39. Nxb4 {[%emt 0:00:05]} axb4 {[%emt 0:00:04]} 40. Rxb4 {[%emt 0:00:00]} h5 {[%emt 0:00:00]} 1/2-1/2

[Event "GAMMA Reykjavik Open 2019"]
[Site "Reykjavik"]
[Date "2019.04.11"]
[Round "2.4"]
[White "L'Ami, Erwin"]
[Black "Tania, Sachdev"]
[Result "1-0"]
[ECO "E17"]
[WhiteElo "2647"]
[BlackElo "2397"]
[Annotator "RC"]
[PlyCount "83"]
[EventDate "2019.04.04"]
[EventType "swiss"]
[EventCountry "ISL"]
[SourceTitle "playchess.com"]
[Source "ChessBase"]
[SourceQuality "1"]
[TimeControl "40/5400+30:1800+30"]

1. d4 {[%emt 0:03:34]} Nf6 {[%emt 0:00:45]} 2. c4 {[%emt 0:00:16]} e6 {[%emt 0:00:05]} 3. Nf3 {[%emt 0:00:24]} b6 {[%emt 0:00:08]} 4. g3 {[%emt 0:00:40]} Bb7 {[%emt 0:00:10]} 5. Bg2 {[%emt 0:00:09]} Be7 {[%emt 0:00:11]} 6. O-O {[%emt 0:00:10]} O-O {[%emt 0:00:10]} 7. Re1 {[%emt 0:00:36]} Na6 {[%emt 0:04:28]} 8. a3 {[%emt 0:01:36]} c5 {[%emt 0:03:46]} 9. d5 {[%emt 0:01:22]} exd5 {[%emt 0:01:50]} 10. Nh4 {[%emt 0:00:16]} Nc7 {[%emt 0:04:05]} 11. Nc3 {[%emt 0:08:50]} d6 {[%emt 0:03:57]} 12. Nf5 {[%emt 0:03:08]} b5 {[%emt 0:09:18]} 13. Nxd5 {[%emt 0:12:30]} Nfxd5 {[%emt 0:11:48]} 14. cxd5 {[%emt 0:02:44]} Bf6 {[%emt 0:00:09]} 15. Bf4 {[%emt 0:07:04]} Ne8 {[%emt 0:00:46]} 16. Qd2 {[%emt 0:01:59]} Bc8 {[%emt 0:25:10]} 17. g4 {[%emt 0:03:33]} Bxf5 {[%emt 0:01:10]} 18. gxf5 {[%emt 0:00:11]} a5 {[%emt 0:06:42]} 19. e4 {[%emt 0:06:46]} a4 {[%emt 0:11:21]} 20. Bg3 {[%emt 0:06:18]} Qa5 {[%emt 0:02:52]} 21. Qxa5 {[%emt 0:02:55]} Rxa5 {[%emt 0:00:03]} 22. Rab1 {[%emt 0:00:19]} Be5 {[%emt 0:07:03]} 23. f4 {[%emt 0:01:44]} Bd4+ {[%emt 0:00:04]} 24. Kf1 {[%emt 0:02:34]} f6 {[%emt 0:00:53]} 25. Red1 {[%emt 0:00:36]} Nc7 {[%emt 0:00:44]} 26. Be1 {[%emt 0:00:34]} Ra7 {[%emt 0:01:10]} 27. Ke2 {[%emt 0:01:14]} Re8 {[%emt 0:00:28]} 28. Kf3 {[%emt 0:01:58]} Rb8 {[%emt 0:03:21]} 29. Bf1 {[%emt 0:03:25]} Na6 {[%emt 0:00:45]} 30. h4 {[%emt 0:00:48]} Nc7 {[%emt 0:00:55]} 31. h5 {[%emt 0:02:34]} h6 {[%emt 0:00:01]} 32. Rxd4 {[%emt 0:14:32]} cxd4 {[%emt 0:00:03]} 33. Bb4 {[%emt 0:00:18]} Rb6 {[%emt 0:01:30]} 34. Rc1 {[%emt 0:00:20]} Na6 {[%emt 0:00:24]} 35. Ba5 {[%emt 0:00:32]} Rb8 {[%emt 0:00:37]} 36. Rc6 {[%emt 0:00:33]} b4 {[%emt 0:00:35]} 37. Bxa6 {[%emt 0:06:45]} bxa3 {[%emt 0:00:04]} 38. bxa3 {[%emt 0:00:06]} Rb3+ {[%emt 0:00:22]} 39. Kg4 {[%emt 0:03:02]} Re7 {[%emt 0:00:07]} 40. Bc8 {[%emt 0:00:00]} Rxe4 {[%emt 0:00:00]} 41. Be6+ {[%emt 0:01:05]} Kh7 {[%emt 0:00:37]} 42. Rc8 {[%emt 0:00:17]} 1-0

[Event "GAMMA Reykjavik Open 2019"]
[Site "Reykjavik"]
[Date "2019.04.11"]
[Round "2.7"]
[White "Astaneh Lopez, Alex"]
[Black "Parligras, Mircea-Emilian"]
[Result "0-1"]
[ECO "D39"]
[WhiteElo "2427"]
[BlackElo "2633"]
[Annotator "ChessBase"]
[PlyCount "80"]
[EventDate "2019.04.04"]
[EventType "swiss"]
[EventCountry "ISL"]
[SourceTitle "playchess.com"]
[Source "ChessBase"]
[SourceQuality "1"]
[TimeControl "40/5400+30:1800+30"]

1. d4 {[%emt 0:16:40]} Nf6 {[%emt 0:00:00]} 2. c4 {[%emt 0:00:06]} e6 {[%emt 0:00:00]} 3. Nf3 {[%emt 0:00:08]} d5 {[%emt 0:00:11]} 4. Bg5 {[%emt 0:03:34]} dxc4 {[%emt 0:01:28]} 5. Nc3 {[%emt 0:01:45]} Bb4 {[%emt 0:09:28]} 6. e4 {[%emt 0:05:17]} h6 {[%emt 0:00:57]} 7. Bxf6 {[%emt 0:00:49]} Qxf6 {[%emt 0:00:05]} 8. Bxc4 {[%emt 0:06:24]} c5 {[%emt 0:00:42]} 9. O-O {[%emt 0:10:18]} cxd4 {[%emt 0:04:51]} 10. Nb5 {[%emt 0:03:21]} Qe7 {[%emt 0:00:36]} 11. Qxd4 {[%emt 0:00:24]} O-O {[%emt 0:00:16]} 12. e5 {[%emt 0:00:05]} Bd7 {[%emt 0:24:09]} 13. a3 {[%emt 0:01:54]} Bc5 {[%emt 0:00:23]} 14. Qf4 {[%emt 0:00:11]} Bxb5 {[%emt 0:06:01]} 15. Bxb5 {[%emt 0:00:06]} a6 {[%emt 0:00:14]} 16. Bd3 {[%emt 0:02:19]} Nc6 {[%emt 0:00:36]} 17. Qe4 {[%emt 0:00:40]} g6 {[%emt 0:00:07]} 18. h4 {[%emt 0:04:10]} h5 {[%emt 0:01:51]} 19. b4 {[%emt 0:07:37]} Bb6 {[%emt 0:00:59]} 20. Rad1 {[%emt 0:12:09]} Rfd8 {[%emt 0:03:04]} 21. Bxa6 {[%emt 0:05:36]} Rxa6 {[%emt 0:08:46]} 22. b5 {[%emt 0:00:05]} Bxf2+ {[%emt 0:05:50]} 23. Kh2 {[%emt 0:00:15]} Rxd1 {[%emt 0:00:29]} 24. Rxd1 {[%emt 0:00:03]} Rxa3 {[%emt 0:06:46]} 25. bxc6 {[%emt 0:00:05]} bxc6 {[%emt 0:00:05]} 26. Rf1 {[%emt 0:00:32]} Qc5 {[%emt 0:07:51]} 27. Qf4 {[%emt 0:03:08]} Be3 {[%emt 0:03:55]} 28. Qf6 {[%emt 0:00:02]} Ra7 {[%emt 0:03:03]} 29. Rd1 {[%emt 0:00:34]} Ra8 {[%emt 0:00:17]} 30. Rd7 {[%emt 0:02:51]} Rf8 {[%emt 0:03:32]} 31. Kg3 {[%emt 0:01:27]} Qc4 {[%emt 0:01:02]} 32. Rc7 {[%emt 0:00:40]} Qg4+ {[%emt 0:00:25]} 33. Kh2 {[%emt 0:00:02]} c5 {[%emt 0:00:36]} 34. g3 {[%emt 0:00:36]} Qe4 {[%emt 0:02:14]} 35. Ng5 {[%emt 0:01:02]} Qc2+ {[%emt 0:00:53]} 36. Kh3 {[%emt 0:00:25]} Qc1 {[%emt 0:01:32]} 37. Kg2 {[%emt 0:00:53]} Qd2+ {[%emt 0:00:29]} 38. Kh3 {[%emt 0:01:26]} Qe1 {[%emt 0:00:35]} 39. Kg2 {[%emt 0:01:15]} Qe2+ {[%emt 0:00:47]} 40. Kh3 {[%emt 0:00:00]} Bg1 {[%emt 0:00:00]} 0-1